bitfinex-derivatives/quotes_ETHF0:USTF0_20210403
["timestamp","ask_amount","ask_price","bid_price","bid_amount"]
[1617467741031,7.10134704,2080.9,2080.8,10.25312691]
[1617467743934,7.10134704,2080.9,2080.2,2.0019]
[1617467745035,7.10134704,2080.9,2080.8,2.90695]
[1617467745236,7.10134704,2080.9,2080.8,5.17585]
[1617467746036,7.10134704,2080.9,2080.8,5.31670639]
[1617467747238,4.19439704,2080.9,2080.8,5.31670639]
[1617467753346,1.37842882,2080.9,2080.8,5.31670639]
[1617467758654,1.37842882,2080.9,2080.8,3.04780639]
[1617467761356,1.37842882,2080.9,2080.8,5.57250639]
[1617467762057,1.37842882,2080.9,2080.8,16.93845582]
[1617467764562,1.37842882,2080.9,2080.8,5.57250639]
[1617467766966,1.37842882,2080.9,2080.8,3.04780639]
[1617467777388,1.37842882,2080.9,2080.8,4.00900639]
[1617467777688,1.37842882,2080.9,2080.8,3.04780639]
[1617467778488,72.9654,2082.9,2080.8,3.04780639]
[1617467778889,72.9654,2082.9,2080.9,0.14077249]
[1617467779089,72.9654,2082.9,2082.6,9.24353684]
[1617467779291,2.90695,2082.7,2082.6,12.15048684]
[1617467779589,2.90695,2082.7,2082.6,9.24353684]
[1617467779990,2.90695,2082.7,2082.6,9.38431317]
[1617467780290,2.90695,2082.7,2081.5,10.87474923]
[1617467780291,2.90695,2082.7,2082.5,9.25351389]
[1617467780990,2.90695,2082.7,2082.6,9.25925332]
[1617467781190,2.90695,2082.7,2082.6,9.40003016]
[1617467781794,2.90695,2082.7,2082.6,0.14077684]
[1617467786196,2.90695,2082.7,2082.5,0.14078775]
[1617467787396,2.90695,2082.7,2082.4,8.7022542]
[1617467787797,2.90695,2082.7,2082.0,13.26737403]
[1617467788097,2.90695,2082.7,2082.0,12.99887403]
[1617467788396,2.90695,2082.7,2082.0,12.37087403]
[1617467789398,2.90695,2082.1,2082.0,12.37087403]
[1617467789899,2.90695,2082.1,2082.0,2.90695]
[1617467792602,2.90695,2082.1,2082.0,3.04773563]
[1617467798812,2.90695,2082.1,2082.0,13.36341936]
[1617467801113,2.90695,2082.1,2082.0,10.45646936]
[1617467803416,2.90695,2082.1,2082.0,10.36746936]
[1617467806719,2.90695,2082.1,2082.0,10.16956936]
[1617467807621,2.90695,2082.1,2082.0,13.07651936]
[1617467808721,2.90695,2082.1,2082.0,2.90695]
[1617467813127,2.90695,2082.1,2081.6,10.90339154]
[1617467813331,4.82605,2082.1,2081.7,0.14079392]
[1617467813528,2.90695,2081.8,2081.7,0.14079392]
[1617467814028,2.90695,2081.8,2081.7,0.05679392]
[1617467814728,2.90695,2081.8,2081.6,0.14081989]
[1617467815131,2.90695,2081.8,2081.4,0.14083381]
[1617467815730,3.85755,2081.4,2081.3,0.14084213]
[1617467815933,6.12575,2081.4,2080.9,13.87198162]
[1617467816130,6.12575,2081.4,2081.3,0.14084149]
[1617467816331,6.12575,2081.4,2081.0,0.14084989]
[1617467817531,2.90695,2081.1,2081.0,0.14084989]
[1617467817831,2.90695,2081.1,2080.9,0.14085632]
[1617467818033,2.90695,2081.1,2081.0,0.14085565]
[1617467818435,2.90695,2081.1,2080.8,0.14085656]
[1617467820838,2.90695,2081.1,2080.7,0.14086547]
[1617467821239,2.90695,2081.1,2080.6,0.14086508]
[1617467821440,2.90695,2081.1,2080.8,0.1408641]
[1617467821940,2.90695,2081.1,2080.6,0.14086387]
[1617467822141,2.90695,2081.1,2080.9,0.14086454]
[1617467822341,2.90695,2081.1,2080.7,0.14086706]
[1617467822743,2.90695,2081.1,2080.6,0.1408677]
[1617467822942,2.90695,2081.1,2080.8,0.14086665]
[1617467823443,4.95395,2081.1,2080.6,0.14086717]
[1617467823644,2.90695,2080.7,2080.6,0.14086717]
[1617467823943,2.90695,2080.7,2080.6,0.03326717]
[1617467824144,2.90695,2080.7,2080.4,13.86150664]
[1617467828544,2.90695,2080.7,2080.4,2.90695]
[1617467829547,77.4215,2081.2,2080.4,2.90695]
[1617467829748,77.4215,2081.2,2081.1,2.90695]
[1617467830050,2.90695,2081.3,2081.1,2.90695]
[1617467830248,2.90695,2081.3,2081.1,3.04779303]
[1617467830448,2.90695,2081.3,2081.2,0.14084445]
[1617467832755,2.90695,2081.3,2080.5,0.14084942]
[1617467833254,2.90695,2081.3,2080.1,0.14084719]
[1617467833455,2.90695,2081.3,2080.6,0.14084934]
[1617467833655,58.3698,2082.5,2081.0,2.90695]
[1617467834056,58.3698,2082.5,2081.1,0.14085013]
[1617467834255,58.3698,2082.5,2081.9,9.28201435]
[1617467834555,55.8803,2082.5,2081.9,9.28201435]
[1617467834855,55.8803,2082.5,2082.0,0.14085255]
[1617467835155,55.8803,2082.5,2081.9,5.18761435]
[1617467835356,2.7896,2082.3,2082.2,8.19768436]
[1617467835556,2.7896,2082.3,2082.1,8.20292015]
[1617467835760,5.69655,2082.3,2082.1,8.20292015]
[1617467836858,5.69655,2082.3,2082.2,7.26402931]
[1617467837059,5.69655,2082.3,2082.2,6.32412931]
[1617467837259,75.6822,2082.2,2081.3,10.31729398]
[1617467837558,75.6822,2082.2,2080.4,10.93903547]
[1617467837759,2.90695,2080.8,2080.5,2.90695]
[1617467843069,2.90695,2080.8,2080.6,0.14086991]
[1617467849275,2.90695,2080.8,2080.7,10.37260003]
[1617467849674,2.90695,2080.8,2080.7,10.51347077]
[1617467852279,2.90695,2080.8,2080.7,0.14087074]
[1617467852577,2.90695,2080.8,2080.7,10.4936972]
[1617467857280,2.90695,2080.8,2080.7,0.14087074]
[1617467857881,2.90695,2080.8,2080.6,0.14087543]
[1617467858081,2.90695,2080.8,2080.7,0.14087565]
[1617467858484,2.90695,2080.8,2080.6,0.14087452]
[1617467858683,15.90695,2080.8,2080.6,0.14087452]
[1617467863089,15.90695,2080.8,2080.7,10.32526115]
[1617467863388,15.90695,2080.8,2080.7,10.46613364]
[1617467870803,15.90695,2080.8,2080.7,0.14087249]
[1617467871104,15.90695,2080.8,2080.6,0.14087046]
[1617467887534,15.90695,2080.8,2080.6,11.08649325]
[1617467887832,15.90695,2080.8,2080.7,0.14086967]
[1617467891642,15.90695,2080.8,2080.5,0.14089412]
[1617467891843,15.90695,2080.8,2080.3,10.98788838]
[1617467891844,15.90695,2080.8,2080.7,0.14089483]
[1617467892246,15.90695,2080.8,2080.3,0.14089675]
[1617467892647,15.90695,2080.8,2080.2,10.88325976]
[1617467893147,15.90695,2080.8,2080.1,2.90695]
[1617467894250,2.90695,2080.2,2080.1,2.90695]
[1617467898053,2.90695,2080.2,2080.1,3.0478359]
[1617467898653,2.90695,2080.2,2080.1,14.66418608]
[1617467899055,2.90695,2080.2,2080.1,3.0478359]
[1617467911172,13.0,2080.8,2080.1,16.95091372]
[1617467911372,13.0,2080.8,2080.1,5.3664359]
[1617467911672,13.0,2080.8,2080.4,11.57081432]
[1617467912073,13.0,2080.8,2080.5,11.71515891]
[1617467912273,13.0,2080.8,2080.7,2.90695]
[1617467912673,13.0,2080.8,2080.7,3.0478005]
[1617467920378,13.0,2080.8,2080.7,0.1408505]
[1617467920981,13.0,2080.8,2080.4,0.14085957]
[1617467921682,13.0,2080.8,2080.3,0.1408588]
[1617467922183,13.0,2080.8,2080.7,2.90695]
[1617467922685,13.0,2080.8,2080.7,3.0478086]
[1617467924185,15.90695,2080.8,2080.7,3.0478086]
[1617467929799,13.0,2080.8,2080.7,3.0478086]
[1617467934603,13.0,2080.8,2080.7,5.1989086]
[1617467940714,13.0,2080.8,2080.7,2.3929086]
[1617467948822,14.858,2080.8,2080.7,2.3929086]
[1617467950624,17.76495,2080.8,2080.7,2.3929086]
[1617467953028,78.99155,2080.8,2080.7,2.3929086]
[1617467957434,78.99155,2080.8,2080.7,2.3209086]
[1617467980258,78.99155,2080.8,2080.7,2.1963086]
[1617467983567,78.99155,2080.8,2080.7,0.1408586]
[1617467983966,78.99155,2080.8,2080.1,0.14086775]
[1617467984765,78.99155,2080.8,2080.6,2.90695]
[1617467985366,78.99155,2080.8,2080.7,0.14086744]
[1617467989175,78.99155,2080.8,2080.6,0.14086614]
[1617467989475,78.99155,2080.8,2080.7,0.14086411]
[1617467989980,78.99155,2080.8,2080.6,0.14086581]
[1617467997488,78.99155,2080.8,2080.1,0.14086535]
[1617467998789,76.0846,2080.8,2080.6,2.90695]
[1617467999490,76.0846,2080.8,2080.7,0.14086779]
[1617468000093,76.0846,2080.8,2080.1,0.14086688]
[1617468000391,76.0846,2080.8,2080.7,0.14086681]
[1617468000792,78.99155,2080.8,2080.5,2.90695]
[1617468000995,78.99155,2080.8,2080.1,0.14087174]
[1617468001192,78.99155,2080.8,2080.6,0.14087271]
[1617468001392,78.99155,2080.8,2080.2,0.14087229]
[1617468001895,78.99155,2080.8,2080.1,0.14087263]
[1617468002095,78.99155,2080.8,2080.3,0.14087243]
[1617468002294,78.99155,2080.8,2080.1,0.14087235]
[1617468002794,76.0846,2080.8,2080.4,2.90695]
[1617468003297,76.0846,2080.8,2080.5,0.14087248]
[1617468003995,14.858,2080.8,2080.5,0.14087248]
[1617468004798,2.90695,2080.6,2080.5,0.14087248]
[1617468008201,2.90695,2080.6,2080.1,0.14087539]
[1617468008401,2.90695,2080.6,2080.5,0.14088203]
[1617468009005,2.90695,2080.6,2080.1,3.04783289]
[1617468009203,2.90695,2080.6,2080.5,0.14088253]
[1617468009403,2.90695,2080.6,2080.2,0.14088164]
[1617468010806,2.90695,2080.3,2080.2,0.14088164]
[1617468011006,5.70505,2080.3,2080.2,0.14088164]
[1617468011406,5.70505,2080.3,2080.1,0.14089274]
[1617468012811,5.70505,2080.3,2080.2,10.97055734]
[1617468013108,5.70505,2080.3,2080.1,11.11037611]
[1617468013310,5.70505,2080.3,2080.1,10.13909767]
[1617468017522,5.70505,2080.3,2080.0,0.8225]
[1617468018419,3.88055,2080.3,2080.0,0.8225]
[1617468018619,2.90695,2080.3,2080.0,0.8225]
[1617468018819,2.90695,2080.3,2080.1,0.14090038]
[1617468019024,2.90695,2080.3,2080.1,2.14760038]
[1617468019420,2.90695,2080.3,2080.2,0.14088453]
[1617468020421,2.90695,2080.3,2080.2,8.453e-05]
[1617468020922,2.90695,2080.3,2080.0,0.8225]
[1617468020923,2.90695,2080.3,2080.1,0.14089092]
[1617468024023,2.90695,2080.3,2080.2,10.36798229]
[1617468024523,2.90695,2080.3,2080.2,10.5089031]
[1617468025226,2.90695,2080.3,2080.2,10.4436031]
[1617468025625,2.90695,2080.3,2080.2,0.14092081]
[1617468026028,2.90695,2080.3,2080.1,0.14091523]
[1617468026826,2.90695,2080.3,2080.1,1.523e-05]
[1617468027027,2.90695,2080.3,2080.0,0.51881746]
[1617468027228,68.2282,2080.0,2079.7,10.23569061]
[1617468027428,69.9199,2080.0,2079.0,2.90695]
[1617468027730,69.9199,2080.0,2078.5,11.49005972]
[1617468028028,69.9199,2080.0,2078.4,11.50353505]
[1617468028431,69.9199,2080.0,2078.3,11.51180617]
[1617468028731,69.9199,2080.0,2079.9,9.30057372]
[1617468029132,72.82685,2080.0,2079.9,9.30057372]
[1617468029333,72.82685,2080.0,2079.9,8.59117372]
[1617468029733,72.82685,2080.0,2079.9,2.78317372]
[1617468030335,72.82685,2080.0,2079.9,1.80757372]
[1617468030534,72.82685,2080.0,2078.7,2.68475]
[1617468030733,4.59865,2080.0,2078.7,2.68475]
[1617468031135,2.90695,2078.8,2078.7,2.68475]
[1617468032334,2.90695,2078.8,2078.7,2.82569481]
[1617468033638,67.25825,2078.8,2078.7,2.82569481]
[1617468038743,64.3513,2078.8,2078.7,2.82569481]
[1617468039447,61.53285637,2078.8,2078.7,2.82569481]
[1617468041654,0.9509,2079.2,2078.7,2.82569481]
[1617468042052,0.9509,2079.2,2078.8,0.14091574]
[1617468042456,0.9509,2079.2,2079.1,10.9710823]
[1617468042756,0.9509,2079.2,2079.1,11.11199811]
[1617468043256,0.9509,2079.2,2079.1,14.01894811]
[1617468043657,0.9509,2079.2,2079.1,3.04786581]
[1617468044157,0.9509,2079.2,2079.1,4.75776581]
[1617468046663,0.9509,2079.2,2079.1,3.49306581]
[1617468050869,0.9509,2079.2,2079.1,1.78316581]
[1617468056373,0.9509,2079.2,2079.1,1.05666581]
[1617468057875,0.9509,2079.2,2079.1,12.07743666]
[1617468058578,0.9509,2079.2,2079.1,1.05666581]
[1617468060280,0.9509,2079.2,2079.1,12.08359693]
[1617468060480,2.90695,2079.3,2079.1,12.08359693]
[1617468060780,2.90695,2079.3,2079.2,0.14093708]
[1617468061080,2.90695,2079.3,2079.2,11.164934]
[1617468061584,2.90695,2079.3,2079.2,11.067334]
[1617468061782,2.90695,2079.3,2079.2,10.509334]
[1617468062283,60.06035,2079.3,2079.2,10.509334]
[1617468064788,60.06035,2079.3,2078.0,11.58351362]
[1617468064987,61.98045,2079.3,2078.0,11.58351362]
[1617468065187,4.82705,2079.3,2078.0,11.58351362]
[1617468065388,79.9181,2079.0,2078.4,2.90695]
[1617468065588,80.8663,2079.0,2078.4,2.90695]
[1617468067094,80.8663,2079.0,2078.5,0.14096754]
[1617468067296,2.90695,2078.6,2078.5,0.14096754]
[1617468067493,4.50395,2078.6,2077.8,2.90695]
[1617468067993,4.50395,2078.6,2077.9,0.14097506]
[1617468069393,1.597,2078.6,2077.9,0.14097506]
[1617468070396,80.8663,2079.0,2077.9,0.14097506]
[1617468071397,80.8663,2079.0,2078.8,2.90695]
[1617468071799,80.8663,2079.0,2078.9,11.18370969]
[1617468072899,80.8663,2079.0,2078.9,0.14094466]
[1617468073300,83.77325,2079.0,2078.9,0.14094466]
[1617468073501,83.77325,2079.0,2078.8,0.14097378]
[1617468073702,83.77325,2079.0,2078.9,0.14097757]
[1617468074000,83.77325,2079.0,2078.6,0.14097568]
[1617468075201,83.77325,2079.0,2078.5,0.14097917]
[1617468075401,83.77325,2079.0,2078.4,11.04259197]
[1617468075402,2.90695,2078.6,2078.4,11.04259197]
[1617468075801,2.90695,2078.6,2078.5,0.14097902]
[1617468077101,2.90695,2078.6,2078.5,11.1764373]
[1617468078109,2.90695,2078.6,2078.5,0.14097902]
[1617468078709,2.90695,2078.6,2078.5,11.16038878]
[1617468079110,3.87555,2078.6,2078.5,11.16038878]
[1617468079312,2.90695,2078.6,2078.5,13.12333878]
[1617468080713,2.90695,2078.6,2078.5,2.90695]
[1617468082914,0.9568,2079.2,2078.5,2.90695]
[1617468083114,73.9876,2079.6,2078.5,2.90695]
[1617468083414,73.9876,2079.6,2079.5,2.90695]
[1617468083613,73.9876,2079.6,2079.5,5.03215]
[1617468084115,13.1052,2081.5,2079.5,5.03215]
[1617468084317,13.1052,2081.5,2079.5,5.17308626]
[1617468084817,13.1349,2081.6,2080.1,9.34502408]
[1617468085016,13.1349,2081.6,2080.1,11.78712408]
[1617468085217,0.9613,2081.7,2080.2,0.14093316]
[1617468085415,2.90695,2080.3,2080.2,0.14093316]
[1617468087217,2.90695,2080.3,2080.0,0.14093538]
[1617468088017,2.90695,2080.3,2080.0,10.57986128]
[1617468088417,2.90695,2080.3,2079.8,2.90695]
[1617468088418,2.90695,2080.3,2080.1,0.14093264]
[1617468088918,2.90695,2080.3,2080.0,0.14093185]
[1617468089218,2.90695,2080.3,2079.9,10.43228555]
[1617468089219,2.90695,2080.3,2080.2,0.14093129]
[1617468089420,2.90695,2080.3,2080.1,0.14093011]
[1617468089819,2.90695,2080.3,2080.0,0.14093255]
[1617468090119,2.90695,2080.3,2080.0,10.57736461]
[1617468090320,2.90695,2080.3,2080.0,10.43643206]
[1617468090519,2.90695,2080.3,2080.1,0.14093165]
[1617468094424,2.90695,2080.3,2080.1,2.21803165]
[1617468094823,2.90695,2080.3,2080.2,0.1409304]
[1617468095526,2.90695,2080.3,2080.0,10.33506246]
[1617468095725,2.90695,2080.3,2079.3,10.9901521]
[1617468096027,2.90695,2080.3,2079.2,10.99232696]
[1617468096527,2.90695,2080.3,2079.2,10.10732696]
[1617468096728,2.90695,2080.3,2080.1,9.34687085]
[1617468096928,2.90695,2080.3,2078.3,11.57303212]
[1617468097428,0.9652,2080.4,2078.7,2.90695]
[1617468097930,0.9652,2080.4,2080.3,9.37402022]
[1617468098130,0.9652,2080.4,2080.2,9.37399296]
[1617468099532,2.90695,2080.3,2080.2,9.22709296]
[1617468099934,2.90695,2080.3,2078.7,2.90695]
[1617468100232,4.81445,2080.3,2078.7,2.90695]
[1617468100632,4.81445,2080.3,2078.2,11.57401781]
[1617468100832,4.81445,2080.3,2078.8,0.14096057]
[1617468101233,4.81445,2080.3,2078.3,0.14096229]
[1617468101435,1.9075,2080.3,2078.5,2.90695]
[1617468101634,73.8995,2079.8,2078.9,0.14096532]
[1617468101934,73.8995,2079.8,2078.6,0.14096608]
[1617468102135,76.2048,2079.8,2078.6,0.14096608]
[1617468104037,76.2048,2079.8,2078.2,0.14097022]
[1617468105540,76.2048,2079.8,2078.7,2.90695]
[1617468106044,76.2048,2079.8,2078.8,0.14096398]
[1617468106241,76.2048,2079.8,2078.7,2.32731398]
[1617468106740,76.2048,2079.8,2079.2,11.03150828]
[1617468107141,73.8995,2079.8,2079.2,11.03150828]
[1617468107442,2.90695,2079.3,2079.2,11.03150828]
[1617468109743,2.90695,2079.3,2079.1,11.03249906]
[1617468111444,2.90695,2079.3,2079.2,0.14097232]
[1617468112046,2.90695,2079.3,2079.2,11.17160445]
[1617468112549,2.90695,2079.3,2079.2,0.14097232]
[1617468113047,2.90695,2079.3,2079.2,11.17230546]
[1617468113548,2.90695,2079.3,2079.2,0.14097232]
[1617468117053,5.37705,2079.3,2079.2,0.14097232]
[1617468118755,5.37705,2079.3,2079.1,0.14097407]
[1617468121660,5.37705,2079.3,2079.0,0.1409711]
[1617468121859,5.37705,2079.3,2079.0,11.16534638]
[1617468122657,5.37705,2079.3,2079.1,0.14097257]
[1617468125260,5.37705,2079.3,2079.0,0.14097526]
[1617468127768,5.37705,2079.3,2079.0,11.16238037]
[1617468128067,5.37705,2079.3,2079.1,0.14096935]
[1617468132972,2.90695,2079.3,2079.1,0.14096935]
[1617468133872,2.90695,2079.3,2079.1,11.15416303]
[1617468134572,2.90695,2079.3,2079.2,11.14593404]
[1617468134973,2.90695,2079.3,2079.2,0.1409548]
[1617468135471,2.90695,2079.3,2078.8,0.14094646]
[1617468135673,2.90695,2079.3,2079.2,0.14094703]
[1617468136073,2.90695,2079.3,2078.8,0.14094813]
[1617468136472,2.90695,2079.3,2079.2,0.14094912]
[1617468136972,2.90695,2079.3,2078.9,0.14094991]
[1617468137172,2.90695,2079.3,2079.2,0.14094707]
[1617468137673,2.90695,2079.3,2078.6,2.05254829]
[1617468137874,73.8995,2079.8,2079.0,2.90695]
[1617468138075,73.8995,2079.8,2079.2,0.14094866]
[1617468138276,73.8995,2079.8,2079.3,11.00305476]
[1617468138678,73.8995,2079.8,2079.4,0.14095006]
[1617468139277,73.8995,2079.8,2079.4,2.17635006]
[1617468139678,73.8995,2079.8,2079.5,0.14094849]
[1617468139879,2.90695,2079.6,2079.5,0.04034849]
[1617468140078,2.90695,2079.6,2079.4,13.03502672]
[1617468140377,2.90695,2079.6,2079.5,0.14094884]
[1617468147288,2.90695,2079.6,2079.5,11.17318842]
[1617468147688,2.90695,2079.6,2079.5,0.14094884]
[1617468147891,2.90695,2079.6,2079.5,3.04789884]
[1617468148092,73.8995,2079.8,2079.5,3.04789884]
[1617468148590,73.8995,2079.8,2079.6,11.16842783]
[1617468148793,73.8995,2079.8,2079.6,12.85992783]
[1617468148997,73.8995,2079.8,2079.7,0.14093677]
[1617468149898,76.80645,2079.8,2079.7,0.14093677]
[1617468154506,76.80645,2079.8,2079.6,0.14095146]
[1617468154805,76.80645,2079.8,2079.7,0.14095113]
[1617468155105,76.80645,2079.8,2079.7,0.14094854]
[1617468155504,76.80645,2079.8,2079.6,0.14094843]
[1617468155706,76.80645,2079.8,2079.7,0.14094931]
[1617468156207,76.80645,2079.8,2079.6,0.14094814]
[1617468156606,76.80645,2079.8,2079.7,0.14094507]
[1617468157008,76.80645,2079.8,2079.6,10.46444733]
[1617468162311,76.80645,2079.8,2079.6,9.49574733]
[1617468163011,76.80645,2079.8,2079.0,2.90695]
[1617468163612,76.80645,2079.8,2079.1,0.14094949]
[1617468163911,2.90695,2079.2,2079.1,0.14094949]
[1617468164615,3.85595,2079.2,2079.1,0.14094949]
[1617468164817,2.90695,2079.2,2079.1,0.14094949]
[1617468165722,3.85975,2079.2,2079.1,0.14094949]
[1617468167124,2.90695,2079.2,2079.1,0.14094949]
[1617468167624,2.90695,2079.2,2079.1,1.09904949]
[1617468168226,2.90695,2079.2,2079.1,0.14094949]
[1617468168526,2.90695,2079.2,2079.0,2.90695]
[1617468177438,3.86475,2079.2,2079.0,2.90695]
[1617468179541,2.90695,2079.2,2079.0,2.90695]
[1617468187855,2.90695,2079.2,2078.6,11.59962399]
[1617468188055,2.90695,2079.2,2079.1,2.90695]
[1617468188458,2.90695,2079.2,2079.1,3.04790488]
[1617468189357,3.87245,2079.2,2079.1,3.04790488]
[1617468191359,2.90695,2079.2,2079.1,3.04790488]
[1617468199880,2.90695,2079.2,2079.1,3.99770488]
[1617468201280,2.90695,2079.2,2079.1,2.82660488]
[1617468201481,2.90695,2079.2,2079.1,2.70370488]
[1617468206286,3.88045,2079.2,2079.1,2.70370488]
[1617468206487,2.90695,2079.2,2079.1,2.70370488]
[1617468207889,3.85595,2079.2,2079.1,2.70370488]
[1617468208090,2.90695,2079.2,2079.1,2.70370488]
[1617468210296,3.86965,2079.2,2079.1,2.70370488]
[1617468210897,2.90695,2079.2,2079.1,2.70370488]
[1617468215507,2.90695,2079.2,2079.1,2.56275]
[1617468215906,2.90695,2079.2,2079.1,2.70369688]
[1617468216107,3.86155,2079.2,2079.1,2.70369688]
[1617468216307,2.90695,2079.2,2079.1,2.70369688]
[1617468222212,3.87745,2079.2,2079.1,2.70369688]
[1617468222412,2.90695,2079.2,2079.1,2.70369688]
[1617468223814,3.86225,2079.2,2079.1,2.61019688]
[1617468224014,2.90695,2079.2,2079.1,2.61019688]
[1617468224815,2.90695,2079.2,2079.1,0.14094688]
[1617468225016,4.58615,2079.2,2079.1,0.14094688]
[1617468225316,5.55305,2079.2,2078.9,11.875407]
[1617468225617,5.55305,2079.2,2079.0,0.14096561]
[1617468225918,5.55305,2079.2,2078.9,0.14096548]
[1617468226416,4.58615,2079.2,2078.9,0.14096548]
[1617468228318,4.58615,2079.2,2078.8,0.14096994]
[1617468229119,5.54325,2079.2,2078.8,0.14096994]
[1617468229418,4.58615,2079.2,2078.8,0.14096994]
[1617468230221,4.58615,2079.2,2078.7,0.14097869]
[1617468230421,2.90695,2078.8,2078.7,0.14097869]
[1617468231125,2.90695,2078.8,2078.5,0.14098051]
[1617468234023,2.90695,2078.8,2078.5,11.87202095]
[1617468234324,2.90695,2078.8,2078.6,0.14098394]
[1617468235024,2.90695,2078.8,2078.5,0.14098349]
[1617468243635,5.23715,2078.8,2078.5,0.14098349]
[1617468244635,5.23715,2078.8,2078.3,0.140997]
[1617468244837,5.23715,2078.8,2078.6,0.14099943]
[1617468245234,5.23715,2078.8,2078.3,0.14100287]
[1617468245635,5.23715,2078.8,2078.7,0.14100039]
[1617468245836,5.23715,2078.8,2078.2,11.75954292]
[1617468245837,5.23715,2078.8,2078.4,0.14100162]
[1617468246237,5.23715,2078.8,2078.3,0.14100227]
[1617468246538,2.3302,2078.8,2078.5,0.14100196]
[1617468246739,2.3302,2078.8,2078.4,0.14100406]
[1617468247038,2.3302,2078.8,2078.0,0.14100402]
[1617468248441,2.90695,2078.1,2078.0,0.14100402]
[1617468248641,4.84435,2078.1,2078.0,0.14100402]
[1617468253246,4.84435,2078.1,2077.9,0.14100437]
[1617468253547,4.84435,2078.1,2077.9,11.89497163]
[1617468254147,4.84435,2078.1,2078.0,0.1410035]
[1617468254746,4.84435,2078.1,2078.0,3.0479535]
[1617468255445,4.84435,2078.1,2078.0,0.1410035]
[1617468255847,4.84435,2078.1,2077.9,0.14101644]
[1617468256446,4.84435,2078.1,2077.8,0.1410249]
[1617468257347,4.84435,2078.1,2077.7,0.14102872]
[1617468257546,4.84435,2078.1,2076.4,12.05709713]
[1617468257547,4.84435,2078.1,2077.9,0.14103276]
[1617468257846,4.84435,2078.1,2077.5,0.1410443]
[1617468258348,4.84435,2078.1,2077.8,11.19941734]
[1617468258547,4.84435,2078.1,2077.6,11.20209488]
[1617468258846,4.84435,2078.1,2077.7,0.14104935]
[1617468260547,2.90695,2077.8,2077.7,0.14104935]
[1617468260747,4.57405,2077.8,2077.7,0.14104935]
[1617468261746,4.57405,2077.8,2077.7,11.35986864]
[1617468263150,4.57405,2077.8,2077.7,0.14104935]
[1617468264452,4.57405,2077.8,2077.7,11.36006184]
[1617468265353,4.57405,2077.8,2077.7,0.14104935]
[1617468266753,4.57405,2077.8,2077.6,10.9297547]
[1617468266954,2.90695,2077.8,2077.6,10.6773547]
[1617468267554,2.90695,2077.8,2076.8,2.90695]
[1617468268754,2.90695,2076.9,2076.8,2.90695]
[1617468272360,2.90695,2076.9,2076.8,3.048034]
[1617468280171,2.90695,2076.9,2076.8,13.66177513]
[1617468280372,2.90695,2076.9,2076.8,13.52069113]
[1617468282572,2.90695,2076.9,2076.8,2.90695]
[1617468282873,2.90695,2076.9,2076.8,13.52070231]
[1617468283873,2.90695,2076.9,2076.8,2.90695]
[1617468284273,2.90695,2076.9,2076.8,13.51493174]
[1617468284574,2.90695,2076.9,2076.8,2.90695]
[1617468284973,2.90695,2076.9,2076.8,13.51889191]
[1617468285175,2.90695,2076.9,2076.8,10.61194191]
[1617468285377,2.90695,2076.9,2076.7,10.61392122]
[1617468285877,2.90695,2076.9,2076.6,10.61458344]
[1617468286077,2.90695,2076.9,2076.5,10.61474144]
[1617468286577,60.5515,2076.8,2076.5,10.61474144]
[1617468286779,2.90695,2076.6,2076.5,10.61474144]
[1617468286978,4.89135,2076.6,2076.5,10.61474144]
[1617468287379,4.89135,2076.6,2076.5,10.75585574]
[1617468287681,4.89135,2076.6,2076.5,0.1411143]
[1617468287880,4.89135,2076.6,2075.0,1.0]
[1617468287881,4.89135,2076.6,2076.4,10.61385475]
[1617468288981,4.89135,2076.6,2076.4,10.26745475]
[1617468289481,4.89135,2076.6,2075.8,2.90695]
[1617468289683,66.8187,2076.0,2075.8,2.90695]
[1617468289881,68.9913,2076.0,2075.8,2.90695]
[1617468290082,68.9913,2076.0,2075.9,0.1411268]
[1617468290783,71.89825,2076.0,2075.9,0.1411268]
[1617468291884,71.89825,2076.0,2075.8,2.7842768]
[1617468292086,71.89825,2076.0,2075.3,11.15372419]
[1617468292284,71.89825,2076.0,2075.2,11.15382313]
[1617468292987,68.9913,2076.0,2075.4,2.90695]
[1617468293285,2.1726,2076.0,2075.4,2.90695]
[1617468294585,1.9844,2076.6,2075.4,2.90695]
[1617468294786,59.9644,2075.7,2075.4,2.90695]
[1617468294985,2.90695,2075.5,2075.4,2.90695]
[1617468297187,2.90695,2075.5,2075.4,3.04809743]
[1617468298388,5.30735,2075.5,2075.4,3.04809743]
[1617468299691,2.90695,2075.5,2075.4,3.04809743]
[1617468302191,2.90695,2075.5,2075.4,2.90695]
[1617468302392,2.90695,2075.5,2075.4,13.48845654]
[1617468303091,61.18515,2075.5,2075.4,13.48845654]
[1617468303991,61.18515,2075.5,2075.4,10.58150654]
[1617468305892,61.18515,2075.5,2075.3,10.57918689]
[1617468306592,61.18515,2075.5,2075.2,2.90695]
[1617468306792,61.18515,2075.5,2075.4,0.14115262]
[1617468307194,61.18515,2075.5,2075.3,0.14115208]
[1617468307394,61.18515,2075.5,2075.4,0.14115135]
[1617468307696,61.18515,2075.5,2075.3,0.14115198]
[1617468308600,61.18515,2075.5,2075.3,11.29938755]
[1617468308900,61.18515,2075.5,2075.4,0.14115344]
[1617468310002,2.90695,2075.5,2075.3,0.14115114]
[1617468310803,70.40065,2075.5,2075.3,0.14115114]
[1617468314808,71.36455,2075.5,2075.3,0.14115114]
[1617468315408,70.40065,2075.5,2075.3,0.14115114]
[1617468318109,70.40065,2075.5,2075.3,11.29841146]
[1617468318110,67.57760104,2075.5,2075.3,11.29841146]
[1617468318309,67.57760104,2075.5,2075.4,0.14115221]
[1617468318709,67.4937,2075.5,2075.4,0.14115221]
[1617468319212,67.4937,2075.5,2075.4,1.82545221]
[1617468327520,67.4937,2075.5,2075.4,0.14115221]
[1617468328221,67.4937,2075.5,2075.3,0.14112425]
[1617468331726,67.4937,2075.5,2075.3,11.87960475]
[1617468332125,67.4937,2075.5,2075.4,0.14111068]
[1617468332326,67.4937,2075.5,2075.4,2.15991068]
[1617468334126,66.0079,2075.5,2075.4,2.15991068]
[1617468334525,65.44360879,2075.5,2075.4,2.15991068]